[Event "Titled Tuesday Blitz August 16 Early 2022"]
[White "Ziatdinov, Raset"]
[Black "Proudian, Armen"]
[WhiteFideId "2015323"]
[BlackFideId "2130734"]
[WhiteElo "2220"]
[BlackElo "2380"]
[Result "1-0"]
[Round "05"]
[TimeControl "180+2"]
[Date "2022.08.18"]
[WhiteClock "0:00:00"]
[BlackClock "0:00:00"]

1. e4 {[%clk 0:00:00]}  e5 {[%clk 0:00:00]} 2. Nf3 {[%clk 0:00:00]}  Nc6 {[%clk 0:00:00]} 3. Bb5 {[%clk 0:00:00]}  a6 {[%clk 0:00:00]} 4. Ba4 {[%clk 0:00:00]}  Nge7 {[%clk 0:00:00]} 5. c3 {[%clk 0:00:00]}  g6 {[%clk 0:00:00]} 6. d4 {[%clk 0:00:00]}  exd4 {[%clk 0:00:00]} 7. cxd4 {[%clk 0:00:00]}  Bg7 {[%clk 0:00:00]} 8. Nc3 {[%clk 0:00:00]}  b5 {[%clk 0:00:00]} 9. Bb3 {[%clk 0:00:00]}  O-O {[%clk 0:00:00]} 10. O-O {[%clk 0:00:00]}  d6 {[%clk 0:00:00]} 11. Bg5 {[%clk 0:00:00]}  h6 {[%clk 0:00:00]} 12. Bh4 {[%clk 0:00:00]}  g5 {[%clk 0:00:00]} 13. Bg3 {[%clk 0:00:00]}  g4 {[%clk 0:00:00]} 14. d5 {[%clk 0:00:00]}  gxf3 {[%clk 0:00:00]} 15. dxc6 {[%clk 0:00:00]}  fxg2 {[%clk 0:00:00]} 16. Kxg2 {[%clk 0:00:00]}  Nxc6 {[%clk 0:00:00]} 17. f4 {[%clk 0:00:00]}  Nd4 {[%clk 0:00:00]} 18. Bd5 {[%clk 0:00:00]}  c6 {[%clk 0:00:00]} 19. e5 {[%clk 0:00:00]}  Qb6 {[%clk 0:00:00]} 20. Be4 {[%clk 0:00:00]}  Bf5 {[%clk 0:00:00]} 21. Qh5 {[%clk 0:00:00]}  Bg6 {[%clk 0:00:00]} 22. Bxg6 {[%clk 0:00:00]}  fxg6 {[%clk 0:00:00]} 23. Qxg6 {[%clk 0:00:00]}  Nf5 {[%clk 0:00:00]} 24. Ne4 {[%clk 0:00:00]}  Ne3+ {[%clk 0:00:00]} 25. Kh1 {[%clk 0:00:00]}  Qd4 {[%clk 0:00:00]} 26. Bf2 {[%clk 0:00:00]}  d5 {[%clk 0:00:00]} 27. Nf6+ {[%clk 0:00:00]}  Rxf6 {[%clk 0:00:00]} 28. exf6 {[%clk 0:00:00]}  Ra7 {[%clk 0:00:00]} 29. Qe8+ {[%clk 0:00:00]}  Bf8 {[%clk 0:00:00]} 30. Rg1+ {[%clk 0:00:00]}  Kh8 {[%clk 0:00:00]} 31. Qxf8+ {[%clk 0:00:00]} 1-0


[Site "https://www.chess.com"]

[Event "Titled Tuesday Blitz August 16 Early 2022"]
[White "Acosta Cruz, Oscar Yosimar"]
[Black "Lakshmi C"]
[WhiteFideId "5111269"]
[BlackFideId "25035347"]
[WhiteElo "2098"]
[BlackElo "1959"]
[Result "1-0"]
[Round "06"]
[TimeControl "180+2"]
[Date "2022.08.18"]
[WhiteClock "0:00:00"]
[BlackClock "0:00:00"]

1. e4 {[%clk 0:00:00]}  c5 {[%clk 0:00:00]} 2. Nf3 {[%clk 0:00:00]}  Nc6 {[%clk 0:00:00]} 3. d4 {[%clk 0:00:00]}  c4 {[%clk 0:00:00]} 4. Bxc4 {[%clk 0:00:00]}  e6 {[%clk 0:00:00]} 5. O-O {[%clk 0:00:00]}  d6 {[%clk 0:00:00]} 6. Re1 {[%clk 0:00:00]}  Be7 {[%clk 0:00:00]} 7. c3 {[%clk 0:00:00]}  a6 {[%clk 0:00:00]} 8. Nbd2 {[%clk 0:00:00]}  Nf6 {[%clk 0:00:00]} 9. Nf1 {[%clk 0:00:00]}  O-O {[%clk 0:00:00]} 10. Ng3 {[%clk 0:00:00]}  b5 {[%clk 0:00:00]} 11. Bb3 {[%clk 0:00:00]}  Na5 {[%clk 0:00:00]} 12. Bc2 {[%clk 0:00:00]}  Re8 {[%clk 0:00:00]} 13. a4 {[%clk 0:00:00]}  Bb7 {[%clk 0:00:00]} 14. axb5 {[%clk 0:00:00]}  axb5 {[%clk 0:00:00]} 15. Bd3 {[%clk 0:00:00]}  Bc6 {[%clk 0:00:00]} 16. Qe2 {[%clk 0:00:00]}  Qb6 {[%clk 0:00:00]} 17. Be3 {[%clk 0:00:00]}  Qb7 {[%clk 0:00:00]} 18. Nd2 {[%clk 0:00:00]}  d5 {[%clk 0:00:00]} 19. e5 {[%clk 0:00:00]}  Nd7 {[%clk 0:00:00]} 20. f4 {[%clk 0:00:00]}  Nf8 {[%clk 0:00:00]} 21. f5 {[%clk 0:00:00]}  exf5 {[%clk 0:00:00]} 22. Nxf5 {[%clk 0:00:00]}  Nc4 {[%clk 0:00:00]} 23. Rxa8 {[%clk 0:00:00]}  Rxa8 {[%clk 0:00:00]} 24. Nb3 {[%clk 0:00:00]}  Nxe3 {[%clk 0:00:00]} 25. Qxe3 {[%clk 0:00:00]}  Ne6 {[%clk 0:00:00]} 26. Nxe7+ {[%clk 0:00:00]}  Qxe7 {[%clk 0:00:00]} 27. Nc5 {[%clk 0:00:00]} 1-0


[Site "https://www.chess.com"]

[Event "Titled Tuesday Blitz August 16 Early 2022"]
[White "Adewumi, Tanitoluwa"]
[Black "Petrova, Irina"]
[WhiteFideId "30966396"]
[BlackFideId "14124122"]
[WhiteElo "2302"]
[BlackElo "2021"]
[Result "1-0"]
[Round "06"]
[TimeControl "180+2"]
[Date "2022.08.18"]
[WhiteClock "0:00:00"]
[BlackClock "0:00:00"]

1. e4 {[%clk 0:00:00]}  d6 {[%clk 0:00:00]} 2. d4 {[%clk 0:00:00]}  Nf6 {[%clk 0:00:00]} 3. Nc3 {[%clk 0:00:00]}  e5 {[%clk 0:00:00]} 4. Nf3 {[%clk 0:00:00]}  Nbd7 {[%clk 0:00:00]} 5. Bc4 {[%clk 0:00:00]}  Be7 {[%clk 0:00:00]} 6. O-O {[%clk 0:00:00]}  O-O {[%clk 0:00:00]} 7. Re1 {[%clk 0:00:00]}  c6 {[%clk 0:00:00]} 8. a4 {[%clk 0:00:00]}  exd4 {[%clk 0:00:00]} 9. Nxd4 {[%clk 0:00:00]}  d5 {[%clk 0:00:00]} 10. exd5 {[%clk 0:00:00]}  Nb6 {[%clk 0:00:00]} 11. Qe2 {[%clk 0:00:00]}  Re8 {[%clk 0:00:00]} 12. Bg5 {[%clk 0:00:00]}  Bg4 {[%clk 0:00:00]} 13. Qd3 {[%clk 0:00:00]}  Nxc4 {[%clk 0:00:00]} 14. Qxc4 {[%clk 0:00:00]}  Nxd5 {[%clk 0:00:00]} 15. Bxe7 {[%clk 0:00:00]}  Nxe7 {[%clk 0:00:00]} 16. Nxc6 {[%clk 0:00:00]}  Nxc6 {[%clk 0:00:00]} 17. Qxg4 {[%clk 0:00:00]}  Qd2 {[%clk 0:00:00]} 18. Re2 {[%clk 0:00:00]}  Rxe2 {[%clk 0:00:00]} 19. Qxe2 {[%clk 0:00:00]}  Qxe2 {[%clk 0:00:00]} 20. Nxe2 {[%clk 0:00:00]}  Rd8 {[%clk 0:00:00]} 21. Kf1 {[%clk 0:00:00]}  Rd2 {[%clk 0:00:00]} 22. Rc1 {[%clk 0:00:00]}  Nb4 {[%clk 0:00:00]} 23. Ke1 {[%clk 0:00:00]}  Rxc2 {[%clk 0:00:00]} 24. Rxc2 {[%clk 0:00:00]}  Nxc2+ {[%clk 0:00:00]} 25. Kd2 {[%clk 0:00:00]}  Nb4 {[%clk 0:00:00]} 26. Kc3 {[%clk 0:00:00]}  Nd5+ {[%clk 0:00:00]} 27. Kd4 {[%clk 0:00:00]}  Nf6 {[%clk 0:00:00]} 28. Kc5 {[%clk 0:00:00]}  Ne4+ {[%clk 0:00:00]} 29. Kd5 {[%clk 0:00:00]}  Nxf2 {[%clk 0:00:00]} 30. Kd6 {[%clk 0:00:00]}  Nd3 {[%clk 0:00:00]} 31. b3 {[%clk 0:00:00]}  b6 {[%clk 0:00:00]} 32. Kc6 {[%clk 0:00:00]}  f5 {[%clk 0:00:00]} 33. Kb7 {[%clk 0:00:00]}  Nc5+ {[%clk 0:00:00]} 34. Kxa7 {[%clk 0:00:00]}  Nxb3 {[%clk 0:00:00]} 35. Kxb6 {[%clk 0:00:00]}  Kf7 {[%clk 0:00:00]} 36. Nc1 {[%clk 0:00:00]}  Nd2 {[%clk 0:00:00]} 37. a5 {[%clk 0:00:00]}  Nc4+ {[%clk 0:00:00]} 38. Kb5 {[%clk 0:00:00]}  Nd6+ {[%clk 0:00:00]} 39. Kc6 {[%clk 0:00:00]}  Ke6 {[%clk 0:00:00]} 40. a6 {[%clk 0:00:00]}  Nc8 {[%clk 0:00:00]} 41. Nd3 {[%clk 0:00:00]}  g5 {[%clk 0:00:00]} 42. Kc7 {[%clk 0:00:00]}  Na7 {[%clk 0:00:00]} 43. Kb7 {[%clk 0:00:00]}  Nb5 {[%clk 0:00:00]} 44. Kb6 {[%clk 0:00:00]}  Nd6 {[%clk 0:00:00]} 45. g3 {[%clk 0:00:00]}  Kd5 {[%clk 0:00:00]} 46. Nb4+ {[%clk 0:00:00]}  Kc4 {[%clk 0:00:00]} 47. Kc6 {[%clk 0:00:00]}  Nc8 {[%clk 0:00:00]} 48. Kc7 {[%clk 0:00:00]}  Na7 {[%clk 0:00:00]} 49. Kb7 {[%clk 0:00:00]}  Nb5 {[%clk 0:00:00]} 50. Nc6 {[%clk 0:00:00]}  f4 {[%clk 0:00:00]} 51. Kb6 {[%clk 0:00:00]}  f3 {[%clk 0:00:00]} 52. Ne5+ {[%clk 0:00:00]}  Kd5 {[%clk 0:00:00]} 53. Nxf3 {[%clk 0:00:00]}  Nd6 {[%clk 0:00:00]} 54. Nxg5 {[%clk 0:00:00]}  Ke5 {[%clk 0:00:00]} 55. Nf7+ {[%clk 0:00:00]}  Nxf7 {[%clk 0:00:00]} 56. a7 {[%clk 0:00:00]} 1-0


[Site "https://www.chess.com"]

[Event "Titled Tuesday Blitz August 16 Early 2022"]
[White "Aldokhin, Ivan"]
[Black "Begunov, Konstantin"]
[WhiteFideId "24115720"]
[BlackFideId "4118510"]
[WhiteElo "2413"]
[BlackElo "2325"]
[Result "1-0"]
[Round "06"]
[TimeControl "180+2"]
[Date "2022.08.18"]
[WhiteClock "0:00:00"]
[BlackClock "0:00:00"]

1. e4 {[%clk 0:00:00]}  c5 {[%clk 0:00:00]} 2. Nf3 {[%clk 0:00:00]}  d6 {[%clk 0:00:00]} 3. d4 {[%clk 0:00:00]}  cxd4 {[%clk 0:00:00]} 4. Nxd4 {[%clk 0:00:00]}  Nf6 {[%clk 0:00:00]} 5. Nc3 {[%clk 0:00:00]}  a6 {[%clk 0:00:00]} 6. Bc4 {[%clk 0:00:00]}  e6 {[%clk 0:00:00]} 7. Bb3 {[%clk 0:00:00]}  Nbd7 {[%clk 0:00:00]} 8. O-O {[%clk 0:00:00]}  Nc5 {[%clk 0:00:00]} 9. f4 {[%clk 0:00:00]}  Qc7 {[%clk 0:00:00]} 10. f5 {[%clk 0:00:00]}  Be7 {[%clk 0:00:00]} 11. fxe6 {[%clk 0:00:00]}  fxe6 {[%clk 0:00:00]} 12. Bg5 {[%clk 0:00:00]}  O-O {[%clk 0:00:00]} 13. Nf5 {[%clk 0:00:00]}  Nxb3 {[%clk 0:00:00]} 14. Nxe7+ {[%clk 0:00:00]}  Qxe7 {[%clk 0:00:00]} 15. axb3 {[%clk 0:00:00]}  Bd7 {[%clk 0:00:00]} 16. Qd4 {[%clk 0:00:00]}  Bc6 {[%clk 0:00:00]} 17. e5 {[%clk 0:00:00]}  dxe5 {[%clk 0:00:00]} 18. Qxe5 {[%clk 0:00:00]}  Rae8 {[%clk 0:00:00]} 19. Rae1 {[%clk 0:00:00]}  b5 {[%clk 0:00:00]} 20. h3 {[%clk 0:00:00]}  Rf7 {[%clk 0:00:00]} 21. Ne2 {[%clk 0:00:00]}  Qb4 {[%clk 0:00:00]} 22. Nd4 {[%clk 0:00:00]}  Bd5 {[%clk 0:00:00]} 23. c3 {[%clk 0:00:00]}  Qxb3 {[%clk 0:00:00]} 24. Nxb3 {[%clk 0:00:00]} 1-0


[Site "https://www.chess.com"]

[Event "Titled Tuesday Blitz August 16 Early 2022"]
[White "Ardila, Oscar Humberto"]
[Black "Tanenbaum, Zachary"]
[WhiteFideId "4404742"]
[BlackFideId "2060850"]
[WhiteElo "2019"]
[BlackElo "2142"]
[Result "0-1"]
[Round "06"]
[TimeControl "180+2"]
[Date "2022.08.18"]
[WhiteClock "0:00:00"]
[BlackClock "0:00:00"]

1. d4 {[%clk 0:00:00]}  d5 {[%clk 0:00:00]} 2. c4 {[%clk 0:00:00]}  Bf5 {[%clk 0:00:00]} 3. e3 {[%clk 0:00:00]}  e6 {[%clk 0:00:00]} 4. Nc3 {[%clk 0:00:00]}  c6 {[%clk 0:00:00]} 5. Bd2 {[%clk 0:00:00]}  Nf6 {[%clk 0:00:00]} 6. Nf3 {[%clk 0:00:00]}  Bd6 {[%clk 0:00:00]} 7. b3 {[%clk 0:00:00]}  Ba3 {[%clk 0:00:00]} 8. Bc1 {[%clk 0:00:00]}  Bb4 {[%clk 0:00:00]} 9. Bd2 {[%clk 0:00:00]}  Ba3 {[%clk 0:00:00]} 10. Bc1 {[%clk 0:00:00]}  Bd6 {[%clk 0:00:00]} 11. Be2 {[%clk 0:00:00]}  O-O {[%clk 0:00:00]} 12. O-O {[%clk 0:00:00]}  Nbd7 {[%clk 0:00:00]} 13. Bb2 {[%clk 0:00:00]}  Ne4 {[%clk 0:00:00]} 14. Nxe4 {[%clk 0:00:00]}  dxe4 {[%clk 0:00:00]} 15. Ne5 {[%clk 0:00:00]}  Nxe5 {[%clk 0:00:00]} 16. dxe5 {[%clk 0:00:00]}  Bc7 {[%clk 0:00:00]} 17. Qxd8 {[%clk 0:00:00]}  Rfxd8 {[%clk 0:00:00]} 18. Rfd1 {[%clk 0:00:00]}  Kf8 {[%clk 0:00:00]} 19. Kf1 {[%clk 0:00:00]}  Ke8 {[%clk 0:00:00]} 20. Ke1 {[%clk 0:00:00]}  Ba5+ {[%clk 0:00:00]} 21. Kf1 {[%clk 0:00:00]}  Rxd1+ {[%clk 0:00:00]} 22. Rxd1 {[%clk 0:00:00]}  Rd8 {[%clk 0:00:00]} 23. Rxd8+ {[%clk 0:00:00]}  Kxd8 {[%clk 0:00:00]} 24. c5 {[%clk 0:00:00]}  Bb4 {[%clk 0:00:00]} 25. Bd4 {[%clk 0:00:00]}  Kc7 {[%clk 0:00:00]} 26. Bd1 {[%clk 0:00:00]}  Kd7 {[%clk 0:00:00]} 27. h3 {[%clk 0:00:00]}  Ke7 {[%clk 0:00:00]} 28. Bc2 {[%clk 0:00:00]}  f6 {[%clk 0:00:00]} 29. exf6+ {[%clk 0:00:00]}  gxf6 {[%clk 0:00:00]} 30. g4 {[%clk 0:00:00]}  Bg6 {[%clk 0:00:00]} 31. h4 {[%clk 0:00:00]}  e5 {[%clk 0:00:00]} 32. Bb2 {[%clk 0:00:00]}  h6 {[%clk 0:00:00]} 33. f3 {[%clk 0:00:00]}  Bxc5 {[%clk 0:00:00]} 34. fxe4 {[%clk 0:00:00]}  Bxe3 {[%clk 0:00:00]} 35. Ke2 {[%clk 0:00:00]}  Bd4 {[%clk 0:00:00]} 36. Ba3+ {[%clk 0:00:00]}  Ke6 {[%clk 0:00:00]} 37. Bc1 {[%clk 0:00:00]}  h5 {[%clk 0:00:00]} 38. g5 {[%clk 0:00:00]}  f5 {[%clk 0:00:00]} 39. Kf3 {[%clk 0:00:00]}  f4 {[%clk 0:00:00]} 40. Bd2 {[%clk 0:00:00]}  c5 {[%clk 0:00:00]} 41. Bd3 {[%clk 0:00:00]}  Be8 {[%clk 0:00:00]} 42. Bc4+ {[%clk 0:00:00]}  Ke7 {[%clk 0:00:00]} 43. Bd5 {[%clk 0:00:00]}  b5 {[%clk 0:00:00]} 44. Ba5 {[%clk 0:00:00]}  Bd7 {[%clk 0:00:00]} 45. Bc7 {[%clk 0:00:00]}  Bg4+ {[%clk 0:00:00]} 46. Kg2 {[%clk 0:00:00]}  f3+ {[%clk 0:00:00]} 47. Kg3 {[%clk 0:00:00]}  f2 {[%clk 0:00:00]} 48. Kg2 {[%clk 0:00:00]}  Bh3+ {[%clk 0:00:00]} 49. Kxh3 {[%clk 0:00:00]}  f1=Q+ {[%clk 0:00:00]} 0-1


[Site "https://www.chess.com"]

[Event "Titled Tuesday Blitz August 16 Early 2022"]
[White "Beerdsen, Thomas"]
[Black "Andreikin, Dmitry"]
[WhiteFideId "1030108"]
[BlackFideId "4158814"]
[WhiteElo "2567"]
[BlackElo "2736"]
[Result "0-1"]
[Round "06"]
[TimeControl "180+1"]
[Date "2022.08.16"]
[WhiteClock "0:00:06"]
[BlackClock "0:00:10"]

1. e4 {[%clk 0:03:00]}  c5 {[%clk 0:02:59]} 2. Nf3 {[%clk 0:03:01]}  e6 {[%clk 0:03:00]} 3. d4 {[%clk 0:03:01]}  cxd4 {[%clk 0:03:01]} 4. Bg5 {[%clk 0:03:01]}  Nf6 {[%clk 0:02:59]} 5. e5 {[%clk 0:03:02]}  h6 {[%clk 0:02:59]} 6. Bh4 {[%clk 0:03:01]}  g5 {[%clk 0:02:52]} 7. exf6 {[%clk 0:03:02]}  gxh4 {[%clk 0:02:52]} 8. Qxd4 {[%clk 0:03:03]}  Nc6 {[%clk 0:02:52]} 9. Qxh4 {[%clk 0:03:03]}  Qb6 {[%clk 0:02:52]} 10. Nbd2 {[%clk 0:03:04]}  Qxb2 {[%clk 0:02:52]} 11. Rb1 {[%clk 0:03:04]}  Qxc2 {[%clk 0:02:52]} 12. Bb5 {[%clk 0:03:04]}  Rg8 {[%clk 0:02:53]} 13. O-O {[%clk 0:03:03]}  Qg6 {[%clk 0:02:53]} 14. g3 {[%clk 0:03:02]}  Qg4 {[%clk 0:02:54]} 15. Rfd1 {[%clk 0:02:43]}  Qxh4 {[%clk 0:02:50]} 16. Nxh4 {[%clk 0:02:44]}  d5 {[%clk 0:02:43]} 17. Ba4 {[%clk 0:02:34]}  Rg4 {[%clk 0:02:04]} 18. Bc2 {[%clk 0:01:57]}  Rb4 {[%clk 0:01:52]} 19. Rbc1 {[%clk 0:01:37]}  Bd7 {[%clk 0:01:48]} 20. Nhf3 {[%clk 0:01:29]}  Nd4 {[%clk 0:01:36]} 21. Nxd4 {[%clk 0:01:25]}  Rxd4 {[%clk 0:01:37]} 22. Nf3 {[%clk 0:01:20]}  Rxd1+ {[%clk 0:01:36]} 23. Rxd1 {[%clk 0:01:19]}  Rc8 {[%clk 0:01:35]} 24. Bh7 {[%clk 0:01:17]}  Bd6 {[%clk 0:01:30]} 25. h4 {[%clk 0:01:14]}  Rc3 {[%clk 0:01:28]} 26. Kg2 {[%clk 0:01:12]}  Bc6 {[%clk 0:01:28]} 27. Nd4 {[%clk 0:01:08]}  Be5 {[%clk 0:01:26]} 28. Nxc6 {[%clk 0:00:59]}  Rxc6 {[%clk 0:01:16]} 29. Rb1 {[%clk 0:00:51]}  b6 {[%clk 0:01:16]} 30. a4 {[%clk 0:00:50]}  Bxf6 {[%clk 0:01:15]} 31. a5 {[%clk 0:00:51]}  Bd4 {[%clk 0:01:10]} 32. g4 {[%clk 0:00:45]}  Ke7 {[%clk 0:01:05]} 33. axb6 {[%clk 0:00:39]}  Bxb6 {[%clk 0:01:06]} 34. f4 {[%clk 0:00:36]}  Rc4 {[%clk 0:01:05]} 35. Kf3 {[%clk 0:00:34]}  Bc7 {[%clk 0:01:03]} 36. Rb7 {[%clk 0:00:33]}  Kd8 {[%clk 0:00:49]} 37. Bg8 {[%clk 0:00:27]}  Rxf4+ {[%clk 0:00:49]} 38. Ke3 {[%clk 0:00:28]}  Rxg4 {[%clk 0:00:39]} 39. Bxf7 {[%clk 0:00:28]}  Rxh4 {[%clk 0:00:40]} 40. Kd3 {[%clk 0:00:26]}  e5 {[%clk 0:00:18]} 41. Kc3 {[%clk 0:00:17]}  Ba5+ {[%clk 0:00:15]} 42. Kb3 {[%clk 0:00:14]}  d4 {[%clk 0:00:14]} 43. Kc4 {[%clk 0:00:14]}  Bb6 {[%clk 0:00:12]} 44. Bg6 {[%clk 0:00:12]}  Rg4 {[%clk 0:00:11]} 45. Bf5 {[%clk 0:00:12]}  Rg5 {[%clk 0:00:11]} 46. Bh3 {[%clk 0:00:11]}  e4 {[%clk 0:00:10]} 47. Rh7 {[%clk 0:00:07]}  h5 {[%clk 0:00:09]} 48. Rh8+ {[%clk 0:00:06]}  Ke7 {[%clk 0:00:09]} 49. Rh7+ {[%clk 0:00:07]}  Kf6 {[%clk 0:00:09]} 50. Rh6+ {[%clk 0:00:07]}  Kg7 {[%clk 0:00:10]} 51. Rxb6 {[%clk 0:00:06]}  axb6 {[%clk 0:00:10]} 0-1


[Site "https://www.chess.com"]

[Event "Titled Tuesday Blitz August 16 Early 2022"]
[White "Belov, Vladimir"]
[Black "Oparin, Grigoriy"]
[WhiteFideId "4132394"]
[BlackFideId "24125890"]
[WhiteElo "2501"]
[BlackElo "2639"]
[Result "1-0"]
[Round "06"]
[TimeControl "180+1"]
[Date "2022.08.16"]
[WhiteClock "0:00:05"]
[BlackClock "0:00:10"]

1. e4 {[%clk 0:03:00]}  c5 {[%clk 0:02:55]} 2. Nf3 {[%clk 0:03:00]}  d6 {[%clk 0:02:55]} 3. c3 {[%clk 0:03:01]}  Nf6 {[%clk 0:02:55]} 4. Be2 {[%clk 0:03:01]}  Bd7 {[%clk 0:02:55]} 5. d3 {[%clk 0:03:00]}  Nc6 {[%clk 0:02:55]} 6. Nbd2 {[%clk 0:02:59]}  g6 {[%clk 0:02:56]} 7. O-O {[%clk 0:02:58]}  Bg7 {[%clk 0:02:56]} 8. Re1 {[%clk 0:02:56]}  O-O {[%clk 0:02:57]} 9. Bf1 {[%clk 0:02:56]}  e5 {[%clk 0:02:55]} 10. Nc4 {[%clk 0:02:56]}  Be6 {[%clk 0:02:54]} 11. a4 {[%clk 0:02:56]}  h6 {[%clk 0:02:54]} 12. h3 {[%clk 0:02:53]}  Qc7 {[%clk 0:02:53]} 13. Bd2 {[%clk 0:02:38]}  Rad8 {[%clk 0:02:53]} 14. Qb3 {[%clk 0:02:23]}  Na5 {[%clk 0:02:19]} 15. Qc2 {[%clk 0:02:18]}  Nxe4 {[%clk 0:02:18]} 16. Rxe4 {[%clk 0:02:01]}  d5 {[%clk 0:02:18]} 17. Rh4 {[%clk 0:01:48]}  dxc4 {[%clk 0:02:18]} 18. Bxh6 {[%clk 0:01:48]}  Bxh6 {[%clk 0:01:57]} 19. Rxh6 {[%clk 0:01:48]}  Kg7 {[%clk 0:01:58]} 20. Rh4 {[%clk 0:01:45]}  Bf5 {[%clk 0:01:58]} 21. Qd2 {[%clk 0:01:14]}  Rh8 {[%clk 0:01:58]} 22. Rxh8 {[%clk 0:01:05]}  Rxh8 {[%clk 0:01:58]} 23. Re1 {[%clk 0:00:59]}  cxd3 {[%clk 0:01:52]} 24. Nxe5 {[%clk 0:00:55]}  c4 {[%clk 0:01:50]} 25. g4 {[%clk 0:00:36]}  Be6 {[%clk 0:01:42]} 26. Qf4 {[%clk 0:00:31]}  Qd8 {[%clk 0:01:23]} 27. Bg2 {[%clk 0:00:27]}  Qf6 {[%clk 0:01:19]} 28. Qg3 {[%clk 0:00:21]}  g5 {[%clk 0:01:17]} 29. Nf3 {[%clk 0:00:14]}  Nb3 {[%clk 0:01:12]} 30. Qc7 {[%clk 0:00:09]}  Bd5 {[%clk 0:01:05]} 31. Re5 {[%clk 0:00:04]}  Bxf3 {[%clk 0:00:15]} 32. Rf5 {[%clk 0:00:05]}  Qg6 {[%clk 0:00:13]} 33. Bxf3 {[%clk 0:00:05]}  d2 {[%clk 0:00:13]} 34. Qe5+ {[%clk 0:00:05]}  Kh7 {[%clk 0:00:12]} 35. Rxg5 {[%clk 0:00:05]}  Re8 {[%clk 0:00:12]} 36. Rh5+ {[%clk 0:00:05]}  Qxh5 {[%clk 0:00:11]} 37. Qxh5+ {[%clk 0:00:06]}  Kg8 {[%clk 0:00:11]} 38. Qg5+ {[%clk 0:00:06]}  Kf8 {[%clk 0:00:12]} 39. Qh6+ {[%clk 0:00:06]}  Kg8 {[%clk 0:00:13]} 40. g5 {[%clk 0:00:06]}  Re6 {[%clk 0:00:13]} 41. Qh4 {[%clk 0:00:05]}  Nc1 {[%clk 0:00:12]} 42. Qxc4 {[%clk 0:00:04]}  Rd6 {[%clk 0:00:12]} 43. Bd1 {[%clk 0:00:04]}  Nd3 {[%clk 0:00:11]} 44. Qc8+ {[%clk 0:00:04]}  Kg7 {[%clk 0:00:12]} 45. Qxb7 {[%clk 0:00:04]}  Re6 {[%clk 0:00:11]} 46. Kh2 {[%clk 0:00:04]}  Nxf2 {[%clk 0:00:11]} 47. Bf3 {[%clk 0:00:03]}  Re3 {[%clk 0:00:10]} 48. Qd5 {[%clk 0:00:03]}  Rd3 {[%clk 0:00:10]} 49. Qc6 {[%clk 0:00:01]}  Kg8 {[%clk 0:00:07]} 50. Qf6 {[%clk 0:00:02]}  Ne4 {[%clk 0:00:06]} 51. Bxe4 {[%clk 0:00:02]}  d1=Q {[%clk 0:00:06]} 52. Bxd3 {[%clk 0:00:02]}  Qxd3 {[%clk 0:00:07]} 53. Qf2 {[%clk 0:00:02]}  Qd5 {[%clk 0:00:07]} 54. h4 {[%clk 0:00:02]}  Qc4 {[%clk 0:00:07]} 55. Qd4 {[%clk 0:00:02]}  Qe2+ {[%clk 0:00:07]} 56. Kg3 {[%clk 0:00:03]}  Qxb2 {[%clk 0:00:07]} 57. Qd8+ {[%clk 0:00:03]}  Kg7 {[%clk 0:00:07]} 58. Qf6+ {[%clk 0:00:04]}  Kg8 {[%clk 0:00:08]} 59. g6 {[%clk 0:00:04]}  Qb8+ {[%clk 0:00:08]} 60. Kh3 {[%clk 0:00:03]}  Qc8+ {[%clk 0:00:08]} 61. Kg3 {[%clk 0:00:04]}  fxg6 {[%clk 0:00:08]} 62. Qxg6+ {[%clk 0:00:04]}  Kh8 {[%clk 0:00:09]} 63. Qf6+ {[%clk 0:00:04]}  Kg8 {[%clk 0:00:09]} 64. Qg5+ {[%clk 0:00:04]}  Kh8 {[%clk 0:00:10]} 65. Qh5+ {[%clk 0:00:05]}  Kg8 {[%clk 0:00:10]} 66. Qg4+ {[%clk 0:00:05]} 1-0


[Site "https://www.chess.com"]

[Event "Titled Tuesday Blitz August 16 Early 2022"]
[White "Bintang, Rasyid A. Hidayat"]
[Black "Karimov, Alisher"]
[WhiteFideId "7105355"]
[BlackFideId "14700280"]
[WhiteElo "1820"]
[BlackElo "2186"]
[Result "1-0"]
[Round "06"]
[TimeControl "180+2"]
[Date "2022.08.18"]
[WhiteClock "0:00:00"]
[BlackClock "0:00:00"]

1. d4 {[%clk 0:00:00]}  Nf6 {[%clk 0:00:00]} 2. Bf4 {[%clk 0:00:00]}  g6 {[%clk 0:00:00]} 3. Nc3 {[%clk 0:00:00]}  Bg7 {[%clk 0:00:00]} 4. e4 {[%clk 0:00:00]}  d6 {[%clk 0:00:00]} 5. Qd2 {[%clk 0:00:00]}  O-O {[%clk 0:00:00]} 6. O-O-O {[%clk 0:00:00]}  a6 {[%clk 0:00:00]} 7. f3 {[%clk 0:00:00]}  b5 {[%clk 0:00:00]} 8. Bh6 {[%clk 0:00:00]}  b4 {[%clk 0:00:00]} 9. Nb1 {[%clk 0:00:00]}  a5 {[%clk 0:00:00]} 10. h4 {[%clk 0:00:00]}  a4 {[%clk 0:00:00]} 11. h5 {[%clk 0:00:00]}  b3 {[%clk 0:00:00]} 12. cxb3 {[%clk 0:00:00]}  axb3 {[%clk 0:00:00]} 13. a3 {[%clk 0:00:00]}  Nxh5 {[%clk 0:00:00]} 14. Rxh5 {[%clk 0:00:00]}  Bxh6 {[%clk 0:00:00]} 15. Rxh6 {[%clk 0:00:00]}  Ba6 {[%clk 0:00:00]} 16. Bxa6 {[%clk 0:00:00]}  Nxa6 {[%clk 0:00:00]} 17. Nh3 {[%clk 0:00:00]}  f6 {[%clk 0:00:00]} 18. Rh1 {[%clk 0:00:00]}  Rf7 {[%clk 0:00:00]} 19. Nf4 {[%clk 0:00:00]}  e5 {[%clk 0:00:00]} 20. Nxg6 {[%clk 0:00:00]}  c5 {[%clk 0:00:00]} 21. dxe5 {[%clk 0:00:00]}  dxe5 {[%clk 0:00:00]} 22. Qxd8+ {[%clk 0:00:00]}  Rxd8 {[%clk 0:00:00]} 23. Nxe5 {[%clk 0:00:00]}  Rg7 {[%clk 0:00:00]} 24. Ng4 {[%clk 0:00:00]}  Kf8 {[%clk 0:00:00]} 25. Rxf6+ {[%clk 0:00:00]}  Ke8 {[%clk 0:00:00]} 26. Rxa6 {[%clk 0:00:00]}  Rgd7 {[%clk 0:00:00]} 27. Re6+ {[%clk 0:00:00]}  Kf8 {[%clk 0:00:00]} 28. Ne5 {[%clk 0:00:00]}  Rd4 {[%clk 0:00:00]} 29. Nc3 {[%clk 0:00:00]}  Rd2 {[%clk 0:00:00]} 30. Rf6+ {[%clk 0:00:00]}  Kg8 {[%clk 0:00:00]} 31. Nd5 {[%clk 0:00:00]}  Rc2+ {[%clk 0:00:00]} 32. Kb1 {[%clk 0:00:00]}  c4 {[%clk 0:00:00]} 33. Rf7 {[%clk 0:00:00]}  Re8 {[%clk 0:00:00]} 34. Rf6 {[%clk 0:00:00]}  c3 {[%clk 0:00:00]} 35. Nxc3 {[%clk 0:00:00]}  Rd8 {[%clk 0:00:00]} 36. Rd1 {[%clk 0:00:00]}  Rc8 {[%clk 0:00:00]} 37. Rfd6 {[%clk 0:00:00]}  Rxg2 {[%clk 0:00:00]} 38. Rd8+ {[%clk 0:00:00]}  Rxd8 {[%clk 0:00:00]} 39. Rxd8+ {[%clk 0:00:00]}  Kg7 {[%clk 0:00:00]} 40. Rd1 {[%clk 0:00:00]}  Kf6 {[%clk 0:00:00]} 41. Ng4+ {[%clk 0:00:00]}  Kg5 {[%clk 0:00:00]} 42. Nd5 {[%clk 0:00:00]}  h5 {[%clk 0:00:00]} 43. Nge3 {[%clk 0:00:00]}  Re2 {[%clk 0:00:00]} 44. Rg1+ {[%clk 0:00:00]}  Kh6 {[%clk 0:00:00]} 45. Nf5+ {[%clk 0:00:00]}  Kh7 {[%clk 0:00:00]} 46. Nf6+ {[%clk 0:00:00]}  Kh8 {[%clk 0:00:00]} 47. Rg8# {[%clk 0:00:00]} 1-0


[Site "https://www.chess.com"]